fUSD/lending_fUSD_20251009
["ID","MTS","AMOUNT","RATE_DAILY","PERIOD"]
[390120690,1759969839673,-500.0,0.00027252,2]
[390120692,1759969839685,-500.0,0.00027252,2]
[390120694,1759969839698,-571.22,0.00027252,2]
[390120696,1759969839710,-500.0,0.00027252,2]
[390120700,1759969839723,-500.0,0.00027252,2]
[390120704,1759969839737,-808.68,0.00027252,2]
[390120706,1759969839749,-828.39,0.00027252,2]
[390120710,1759969839761,-500.0,0.00027252,2]
[390120713,1759969839773,-500.0,0.00027252,2]
[390120717,1759969839786,-3477.84,0.00027252,2]
[390120720,1759969839798,-614.06,0.00027252,2]
[390120724,1759969839810,-5391.3351502,0.00027252,3]
[390120726,1759969839821,-500.0,0.00027253,2]
[390120729,1759969839833,-500.0,0.00027253,2]
[390120732,1759969839846,-563.51,0.00027253,2]
[390120737,1759969839866,-500.0,0.00027253,2]
[390120740,1759969839879,-500.0,0.00027253,2]
[390120743,1759969839893,-500.0,0.00027253,2]
[390120747,1759969839906,-872.17,0.00027253,2]
[390120750,1759969839922,-500.0,0.00027253,2]
[390120753,1759969839932,-500.0,0.00027253,2]
[390120755,1759969839942,-592.28901717,0.00027253,2]
[390120758,1759969839953,-151.0,0.00027256,7]
[390120761,1759969839965,-151.784588,0.00027256,7]
[390120763,1759969839976,-5391.3351502,0.00027257,3]
[390120765,1759969839990,-500.0,0.00027273,2]
[390120767,1759969840005,-190.5761145,0.00027273,2]
[390120769,1759969840015,-166.69215938,0.00027277,2]
[390120771,1759969840025,-192.0,0.00027284,2]
[390120772,1759969840035,-5391.3351502,0.00027288,3]
[390120774,1759969840045,-5391.3351502,0.00027296,3]
[390120776,1759969840056,-5391.3351502,0.00027298,3]
[390120778,1759969840067,-1000.0,0.000273,2]
[390120780,1759969840078,-542.52105224,0.000273,7]
[390120782,1759969840092,-5391.3351502,0.00027306,3]
[390120784,1759969840104,-5391.3351502,0.00027308,3]
[390120786,1759969840115,-327.0,0.00027308,2]
[390120788,1759969840126,-151.0,0.00027308,7]
[390120790,1759969840136,-16174.0054506,0.00027315,3]
[390120791,1759969840146,-238.82190751,0.00027315,2]
[390120793,1759969840157,-5391.3351502,0.00027318,3]
[390120795,1759969840168,-3627.87690441,0.0002732,2]
[390120798,1759969840184,-500.0,0.00027324,2]
[390120799,1759969840195,-6.12913543,0.00027324,2]
[390120802,1759969840212,-525.52086457,0.00027324,2]
[390120804,1759969840223,-934.58,0.00027324,2]
[390120806,1759969840235,-91.74534043,0.00027324,2]
[390120808,1759969840255,-408.25465957,0.00027324,2]
[390120810,1759969840267,-500.0,0.00027324,2]
[390120812,1759969840279,-500.0,0.00027324,2]
[390120814,1759969840292,-500.0,0.00027325,2]
[390120817,1759969840307,-1690.62,0.00027325,2]
[390120819,1759969840319,-500.0,0.00027325,2]
[390120821,1759969840331,-500.0,0.00027325,2]
[390120823,1759969840343,-500.0,0.00027325,2]
[390120825,1759969840354,-500.0,0.00027325,2]
[390120827,1759969840365,-500.0,0.00027325,2]
[390120829,1759969840376,-500.0,0.00027325,2]
[390120831,1759969840388,-500.0,0.00027325,2]
[390120833,1759969840399,-500.0,0.00027325,2]
[390120834,1759969840410,-500.0,0.00027325,2]
[390120836,1759969840421,-285.23,0.00027325,2]
[390120838,1759969840431,-500.0,0.00027325,2]
[390120840,1759969840442,-500.0,0.00027325,2]
[390120842,1759969840453,-500.0,0.00027325,2]
[390120844,1759969840465,-500.0,0.00027325,2]
[390120846,1759969840476,-500.0,0.00027325,2]
[390120848,1759969840487,-500.0,0.00027325,2]
[390120850,1759969840498,-500.0,0.00027325,2]
[390120852,1759969840509,-500.0,0.00027325,2]
[390120854,1759969840519,-500.0,0.00027325,2]
[390120856,1759969840529,-588.95,0.00027325,2]
[390120858,1759969840539,-500.0,0.00027325,2]
[390120859,1759969840550,-500.0,0.00027325,2]
[390120861,1759969840561,-1055.04,0.00027325,2]
[390120863,1759969840572,-500.0,0.00027325,2]
[390120865,1759969840583,-500.0,0.00027325,2]
[390120867,1759969840594,-500.0,0.00027325,2]
[390120869,1759969840605,-773.15,0.00027325,2]
[390120871,1759969840616,-500.0,0.00027325,2]
[390120873,1759969840626,-500.0,0.00027325,2]
[390120875,1759969840637,-500.0,0.00027325,2]
[390120877,1759969840648,-500.0,0.00027325,2]
[390120879,1759969840658,-1500.0,0.00027325,2]
[390120881,1759969840669,-500.0,0.00027325,2]
[390120883,1759969840681,-500.0,0.00027325,2]
[390120885,1759969840692,-145.2502977,0.00027325,2]
[390120887,1759969840708,-313.92303194,0.00027325,2]
[390120889,1759969840721,-40.82667036,0.00027325,2]
[390120891,1759969840733,-500.0,0.00027325,2]
[390120892,1759969840743,-500.0,0.00027325,2]
[390120894,1759969840754,-500.0,0.00027325,2]
[390120896,1759969840766,-500.0,0.00027325,2]
[390120898,1759969840778,-217.25261078,0.00027325,2]
[390120900,1759969840789,-500.0,0.00027325,2]
[390120902,1759969840801,-500.0,0.00027325,2]
[390120904,1759969840812,-500.0,0.00027325,2]
[390120906,1759969840823,-500.0,0.00027325,2]
[390120908,1759969840834,-500.0,0.00027325,2]
[390120910,1759969840845,-500.0,0.00027325,2]
[390120912,1759969840856,-500.0,0.00027325,2]
[390120914,1759969840867,-500.0,0.00027325,2]
[390120916,1759969840878,-500.0,0.00027325,2]
[390120918,1759969840889,-500.0,0.00027325,2]
[390120920,1759969840901,-500.0,0.00027325,2]
[390120922,1759969840912,-500.0,0.00027325,2]
[390120924,1759969840927,-500.0,0.00027325,2]
[390120926,1759969840939,-500.0,0.00027325,2]
[390120928,1759969840950,-500.0,0.00027327,2]
[390120930,1759969840962,-500.0,0.00027327,2]
[390120931,1759969840973,-500.0,0.00027327,2]
[390120933,1759969840982,-500.0,0.00027327,2]
[390120935,1759969840993,-233.13437587,0.00027327,2]
[390120937,1759969841005,-266.86562413,0.00027327,2]
[390120939,1759969841014,-500.0,0.00027327,2]
[390120941,1759969841023,-500.0,0.00027328,2]
[390120942,1759969841032,-16.92466982,0.00027328,2]
[390120944,1759969841043,-483.07533018,0.00027328,2]
[390120946,1759969841052,-276.72768185,0.00027328,2]
[390120948,1759969841064,-223.27231815,0.00027328,2]
[390120950,1759969841073,-500.0,0.00027328,2]
[390120952,1759969841083,-1064.62,0.00027328,2]
[390120953,1759969841092,-327.0,0.00027342,2]
[390120955,1759969841102,-13189.78897051,0.00027362,3]
[390120971,1759969841275,-1366.24894643,0.00026838,2]
[390120972,1759969841286,-679.75105357,0.00026838,2]
[390120973,1759969841295,-151.0,0.00026978,7]
[390120974,1759969841540,-500.0,0.00027051,2]
[390120975,1759969841562,-205.31,0.00027233,2]
[390120977,1759969841576,-19158.22193069,0.00027362,3]
[390120978,1759969841585,-91652.6975534,0.00027363,3]
[390120980,1759969841595,-5391.3351502,0.00027367,3]
[390120981,1759969841604,-74008.36761036,0.00027372,2]
[390120983,1759969841614,-500.0,0.00027373,2]
[390120985,1759969841623,-500.0,0.00027373,2]
[390120987,1759969841632,-500.0,0.00027373,2]
[390120989,1759969841642,-500.0,0.00027373,2]
[390120991,1759969841651,-500.0,0.00027373,2]
[390120993,1759969841660,-500.0,0.00027373,2]
[390120995,1759969841669,-500.0,0.00027373,2]
[390120997,1759969841679,-200.18968299,0.00027373,2]
[390120999,1759969841688,-183263.02919198,0.00027373,2]
[390121001,1759969841698,-419.15,0.00027384,2]
[390121003,1759969841708,-5391.3351502,0.00027387,3]
[390121005,1759969841718,-300.0,0.00027397,7]
[390121007,1759969841727,-542.56,0.00027397,2]
[390121009,1759969841737,-331.30732007,0.00027397,2]
[390121011,1759969841747,-300.0,0.00027397,2]
[390121013,1759969841756,-1170.46,0.000274,30]
[390121015,1759969841766,-5489.34531867,0.0002741,2]
[390121017,1759969841776,-5391.3351502,0.00027417,3]
[390121019,1759969841785,-238.82190751,0.00027425,2]
[390121021,1759969841794,-5391.3351502,0.00027427,3]
[390121023,1759969841803,-443.75476483,0.00027427,2]
[390121025,1759969841814,-372.25642292,0.0002743,7]
[390121027,1759969841823,-960.65,0.00027432,2]
[390121029,1759969841833,-500.0,0.00027437,7]
[390121031,1759969841842,-500.0,0.00027437,7]
[390121033,1759969841852,-500.0,0.00027437,7]
[390121035,1759969841861,-500.0,0.00027437,7]
[390121037,1759969841871,-157.92,0.00027437,7]
[390121039,1759969841880,-500.0,0.00027437,7]
[390121041,1759969841890,-638.30839606,0.00027437,7]
[390121043,1759969841899,-500.0,0.00027437,7]
[390121045,1759969841909,-359.15142951,0.00027437,7]
[390121047,1759969841921,-500.0,0.00027437,7]
[390121049,1759969841931,-373.07354568,0.00027437,7]
[390121051,1759969841940,-500.0,0.00027437,7]
[390121053,1759969841950,-500.0,0.00027437,7]
[390121055,1759969841959,-7300.77,0.00027437,7]
[390121057,1759969841970,-700.3,0.00027437,7]
[390121059,1759969841979,-500.0,0.00027437,7]
[390121061,1759969841989,-500.0,0.00027437,7]
[390121063,1759969841999,-500.0,0.00027437,7]
[390121065,1759969842008,-500.0,0.00027437,7]
[390121067,1759969842017,-539.99,0.00027437,7]
[390121069,1759969842026,-825.55,0.00027437,7]
[390121071,1759969842036,-627.38,0.00027437,7]
[390121073,1759969842046,-500.0,0.00027437,7]
[390121075,1759969842055,-500.0,0.00027437,7]
[390121077,1759969842064,-500.0,0.00027437,7]
[390121079,1759969842073,-500.0,0.00027437,7]
[390121081,1759969842082,-500.0,0.00027437,7]
[390121083,1759969842092,-502.43,0.00027437,7]
[390121085,1759969842101,-336.75,0.00027437,7]
[390121087,1759969842110,-500.0,0.00027437,7]
[390121089,1759969842119,-250.0,0.00027438,2]
[390121091,1759969842128,-250.0,0.00027438,2]
[390121092,1759969842137,-150.0,0.00027438,2]
[390121095,1759969842146,-150.0,0.00027438,2]
[390121097,1759969842155,-203.83316105,0.00027438,2]
[390121099,1759969842165,-150.0,0.00027438,2]
[390121101,1759969842174,-200.0,0.00027438,2]
[390121103,1759969842184,-150.0,0.00027438,2]
[390121105,1759969842193,-150.0,0.00027438,2]
[390121107,1759969842202,-200.0,0.00027438,2]
[390121109,1759969842211,-150.0,0.00027438,2]
[390121110,1759969842220,-500.0,0.00027438,2]
[390121113,1759969842230,-500.0,0.00027438,2]
[390121114,1759969842239,-1093.33,0.00027438,2]
[390121116,1759969842248,-500.0,0.00027495,7]
[390121118,1759969842257,-209.61582402,0.00027497,2]
[390121120,1759969842267,-1000.0,0.000275,2]
[390121122,1759969842276,-160.20300547,0.00027501,2]
[390121124,1759969842286,-500.0,0.00027524,7]
[390121126,1759969842295,-500.0,0.00027524,7]
[390121128,1759969842305,-500.0,0.00027524,7]
[390121131,1759969842315,-500.0,0.00027524,7]
[390121132,1759969842324,-500.0,0.00027524,7]
[390121134,1759969842333,-500.0,0.00027524,7]
[390121137,1759969842343,-854.8,0.00027524,7]
[390121139,1759969842352,-500.0,0.00027524,7]
[390121141,1759969842361,-500.0,0.00027524,7]
[390121143,1759969842370,-500.0,0.00027524,7]
[390121145,1759969842379,-500.0,0.00027524,7]
[390121147,1759969842388,-500.0,0.00027524,7]
[390121149,1759969842396,-500.0,0.00027524,7]
[390121151,1759969842405,-500.0,0.00027524,7]
[390121153,1759969842414,-500.0,0.00027524,7]
[390121155,1759969842423,-220.01,0.00027524,7]
[390121157,1759969842433,-500.0,0.00027526,7]
[390121159,1759969842442,-500.0,0.00027526,7]
[390121161,1759969842451,-500.0,0.00027526,7]
[390121163,1759969842463,-500.0,0.00027526,7]
[390121165,1759969842473,-571.22,0.00027526,7]
[390121167,1759969842482,-500.0,0.00027526,7]
[390121169,1759969842491,-500.0,0.00027526,7]
[390121171,1759969842501,-808.68,0.00027526,7]
[390121173,1759969842510,-828.39,0.00027526,7]
[390121176,1759969842523,-500.0,0.00027526,7]
[390121178,1759969842532,-500.0,0.00027526,7]
[390121180,1759969842541,-3477.84,0.00027526,7]
[390121182,1759969842551,-614.06,0.00027526,7]
[390121184,1759969842561,-500.0,0.00027527,7]
[390121186,1759969842570,-607.64,0.00027527,7]
[390121187,1759969842579,-500.0,0.00027527,7]
[390121189,1759969842588,-639.29359934,0.00027527,7]
[390121191,1759969842598,-872.17,0.00027527,7]
[390121193,1759969842607,-500.0,0.00027527,7]
[390121195,1759969842616,-500.0,0.00027527,7]
[390121197,1759969842625,-238.82190751,0.00027534,2]
[390121199,1759969842634,-1846.22173,0.0002757,2]
[390121202,1759969842644,-1000.0,0.00027573,2]
[390121203,1759969842653,-192.0,0.00027588,7]
[390121205,1759969842662,-500.0,0.00027598,7]
[390121207,1759969842671,-531.65,0.00027598,7]
[390121209,1759969842680,-934.58,0.00027598,7]
[390121212,1759969842689,-500.0,0.00027598,7]
[390121214,1759969842699,-500.0,0.00027598,7]
[390121216,1759969842708,-500.0,0.00027598,7]
[390121218,1759969842719,-247.37,0.00027599,7]
[390121219,1759969842729,-1690.62,0.00027599,7]
[390121222,1759969842738,-500.0,0.00027599,7]
[390121224,1759969842748,-500.0,0.00027599,7]
[390121226,1759969842757,-500.0,0.00027599,7]
[390121228,1759969842767,-500.0,0.00027599,7]
[390121230,1759969842777,-500.0,0.00027599,7]
[390121232,1759969842786,-500.0,0.00027599,7]
[390121234,1759969842795,-228.82156001,0.00027599,7]
[390121236,1759969842804,-500.0,0.00027599,7]
[390121238,1759969842814,-500.0,0.00027599,7]
[390121240,1759969842823,-500.0,0.00027599,7]
[390121241,1759969842832,-500.0,0.00027599,7]
[390121243,1759969842842,-500.0,0.00027599,7]
[390121245,1759969842851,-500.0,0.00027599,7]
[390121247,1759969842860,-500.0,0.00027599,7]
[390121249,1759969842869,-500.0,0.00027599,7]
[390121251,1759969842878,-500.0,0.00027599,7]
[390121253,1759969842888,-500.0,0.00027599,7]
[390121255,1759969842897,-588.95,0.00027599,7]
[390121257,1759969842907,-500.0,0.00027599,7]
[390121259,1759969842919,-1055.04,0.00027599,7]
[390121261,1759969842929,-325.79,0.00027599,7]
[390121263,1759969842938,-500.0,0.00027599,7]
[390121265,1759969842948,-773.15,0.00027599,7]
[390121267,1759969842959,-500.0,0.00027599,7]
[390121270,1759969842969,-500.0,0.00027599,7]
[390121272,1759969842978,-500.0,0.00027599,7]
[390121274,1759969842989,-500.0,0.00027599,7]
[390121276,1759969842999,-500.0,0.00027599,7]
[390121278,1759969843009,-1500.0,0.00027599,2]
[390121280,1759969843018,-500.0,0.00027599,7]
[390121281,1759969843027,-500.0,0.00027599,7]
[390121284,1759969843037,-500.0,0.00027599,7]
[390121286,1759969843047,-500.0,0.00027599,7]
[390121288,1759969843057,-378.32,0.00027599,7]
[390121290,1759969843066,-500.0,0.00027599,7]
[390121292,1759969843075,-500.0,0.00027599,7]
[390121294,1759969843084,-500.0,0.00027599,7]
[390121296,1759969843093,-500.0,0.00027599,7]
[390121299,1759969843103,-500.0,0.00027599,7]
[390121302,1759969843112,-500.0,0.00027599,7]
[390121304,1759969843121,-297.45,0.00027599,7]
[390121306,1759969843131,-500.0,0.00027599,7]
[390121308,1759969843141,-500.0,0.00027599,7]
[390121310,1759969843150,-500.0,0.00027599,7]
[390121312,1759969843159,-500.0,0.00027599,7]
[390121314,1759969843168,-500.0,0.00027599,7]
[390121316,1759969843177,-500.0,0.00027599,7]
[390121318,1759969843187,-500.0,0.00027599,7]
[390121321,1759969843198,-500.0,0.00027599,7]
[390121324,1759969843209,-500.0,0.00027601,7]
[390121328,1759969843219,-500.0,0.00027601,7]
[390121330,1759969843228,-500.0,0.00027601,7]
[390121332,1759969843238,-500.0,0.00027601,7]
[390121334,1759969843247,-500.0,0.00027601,7]
[390121336,1759969843257,-500.0,0.00027601,7]
[390121338,1759969843266,-500.0,0.00027602,7]
[390121340,1759969843276,-500.0,0.00027602,7]
[390121342,1759969843285,-416.51500743,0.00027602,7]
[390121344,1759969843294,-400.75000827,0.00027602,7]
[390121346,1759969843303,-1064.62,0.00027602,7]
[390121348,1759969843314,-648.0,0.00027635,2]
[390121350,1759969843323,-238.82190751,0.00027644,2]
[390121352,1759969843332,-152.0,0.00027664,3]
[390121354,1759969843341,-500.0,0.00027711,7]
[390121356,1759969843349,-455.38400622,0.00027711,7]
[390121358,1759969843358,-500.0,0.00027711,7]
[390121359,1759969843368,-500.0,0.00027711,7]
[390121361,1759969843377,-500.0,0.00027711,7]
[390121363,1759969843387,-500.0,0.00027711,7]
[390121365,1759969843396,-385.1606258,0.00027711,7]
[390121367,1759969843405,-5893.65837463,0.00027711,7]
[390121386,1759969843580,-0.60273955,0.00026579,2]
[390121569,1759969845556,-1046.12980022,0.00026579,2]
[390121987,1759969862897,246.94604927,0.00028767,120]
[390121992,1759970248712,873.18,0.00025111,120]
[390121993,1759970248940,873.18,0.0002825,120]
[390122015,1759971031053,-213.17844195,0.00017888,2]
[390122018,1759971031766,-4.86957842,0.00017888,2]
[390122020,1759971031777,-342.10677486,0.00017934,2]
[390122022,1759971031786,-49.72649486,0.00017986,2]
[390122026,1759971031874,-1150.27350514,0.00017986,2]
[390122027,1759971031884,-367.33399874,0.00017986,2]
[390122028,1759971031895,-300.0,0.00017987,2]
[390122029,1759971031905,-500.0,0.00017987,2]
[390122030,1759971031914,-500.0,0.00017987,2]
[390122031,1759971031923,-500.0,0.00017987,2]
[390122032,1759971031932,-500.0,0.00017987,2]
[390122033,1759971031941,-500.0,0.00017987,2]
[390122034,1759971031950,-500.0,0.00017987,2]
[390122035,1759971031959,-500.0,0.00017987,2]
[390122036,1759971031968,-500.0,0.00017987,2]
[390122037,1759971031977,-500.0,0.00017987,2]
[390122038,1759971031987,-500.0,0.00017987,2]
[390122039,1759971031997,-500.0,0.00017987,2]
[390122040,1759971032006,-500.0,0.00017987,2]
[390122041,1759971032015,-500.0,0.00017987,2]
[390122042,1759971032025,-500.0,0.00017987,2]
[390122043,1759971032035,-500.0,0.00017987,2]
[390122044,1759971032044,-500.0,0.00017987,2]
[390122045,1759971032054,-500.0,0.00017987,2]
[390122046,1759971032063,-500.0,0.00017987,2]
[390122047,1759971032072,-500.0,0.00017987,2]
[390122048,1759971032082,-500.0,0.00017987,2]
[390122049,1759971032091,-500.0,0.00017987,2]
[390122051,1759971032100,-500.0,0.00017987,2]
[390122053,1759971032110,-500.0,0.00017987,2]
[390122055,1759971032119,-500.0,0.00017987,2]
[390122057,1759971032128,-500.0,0.00017987,2]
[390122059,1759971032138,-500.0,0.00017987,2]
[390122061,1759971032147,-500.0,0.00017987,2]
[390122062,1759971032156,-500.0,0.00017987,2]
[390122063,1759971032166,-500.0,0.00017987,2]
[390122064,1759971032175,-500.0,0.00017987,2]
[390122065,1759971032184,-500.0,0.00017987,2]
[390122066,1759971032193,-500.0,0.00017987,2]
[390122067,1759971032202,-500.0,0.00017987,2]
[390122068,1759971032211,-500.0,0.00017987,2]
[390122069,1759971032220,-500.0,0.00017987,2]
[390122070,1759971032230,-500.0,0.00017987,2]
[390122071,1759971032239,-500.0,0.00017987,2]
[390122072,1759971032248,-500.0,0.00017987,2]
[390122073,1759971032258,-229.61541782,0.00017987,2]
[390122074,1759971032271,-500.0,0.00017987,2]
[390122075,1759971032280,-500.0,0.00017987,2]
[390122076,1759971032290,-500.0,0.00017987,2]
[390122077,1759971032299,-500.0,0.00017987,2]
[390122078,1759971032309,-500.0,0.00017987,2]
[390122079,1759971032318,-500.0,0.00017987,2]
[390122080,1759971032327,-500.0,0.00017987,2]
[390122081,1759971032336,-500.0,0.00017987,2]
[390122082,1759971032346,-500.0,0.00017987,2]
[390122083,1759971032355,-500.0,0.00017987,2]
[390122084,1759971032365,-500.0,0.00017987,2]
[390122085,1759971032375,-500.0,0.00017987,2]
[390122086,1759971032384,-500.0,0.00017987,2]
[390122087,1759971032394,-500.0,0.00017987,2]
[390122088,1759971032404,-500.0,0.00017987,2]
[390122089,1759971032414,-500.0,0.00017987,2]
[390122090,1759971032423,-500.0,0.00017987,2]
[390122091,1759971032433,-500.0,0.00017987,2]
[390122092,1759971032443,-500.0,0.00017987,2]
[390122093,1759971032452,-500.0,0.00017987,2]
[390122094,1759971032462,-200.0,0.00017987,2]
[390122095,1759971032471,-1022.81,0.00017994,2]
[390122096,1759971032480,-500.0,0.00018,2]
[390122097,1759971032490,-1022.81,0.00018268,2]
[390122098,1759971032499,-1022.81,0.00018542,2]
[390122099,1759971032509,-1022.81,0.00018816,2]
[390122100,1759971032518,-1022.81,0.0001909,2]
[390122101,1759971032527,-1022.81,0.00019364,2]
[390122102,1759971032536,-1022.81,0.00019638,2]
[390122103,1759971032546,-378.56774552,0.00019677,2]
[390122104,1759971032555,-2500.0,0.00019685,2]
[390122105,1759971032564,-480.0,0.00019721,2]
[390122106,1759971032574,-204.82516285,0.00019727,2]
[390122107,1759971032583,-1022.81,0.00019912,2]
[390122108,1759971032592,-1022.81,0.00020186,2]
[390122109,1759971032602,-1022.81,0.0002046,2]
[390122110,1759971032611,-1022.81,0.00020734,2]
[390122111,1759971032621,-1022.85,0.00021008,2]
[390122112,1759971032630,-191.62,0.00022482,2]
[390122113,1759971032639,-150.0,0.00022686,2]
[390122114,1759971032649,-1422.98,0.00024174,2]
[390122115,1759971032659,-4673.86687128,0.00024174,2]
[390122116,1759971032679,-2091.61312872,0.00024174,2]
[390122117,1759971032689,-3090.71,0.00024174,2]
[390122118,1759971032698,-2501.12,0.00024174,2]
[390122119,1759971032707,-329.0,0.00024355,2]
[390122120,1759971032717,-244.36460896,0.000244,2]
[390122121,1759971032727,-666.0,0.00024406,3]
[390122122,1759971032736,-370.79582791,0.00024407,2]
[390122123,1759971032746,-530.85,0.00024455,2]
[390122124,1759971032755,-237.58,0.00024587,2]
[390122125,1759971032765,-150.0,0.0002459,2]
[390122126,1759971032774,-582.16,0.00024658,2]
[390122127,1759971032785,-327.0,0.00024773,2]
[390122128,1759971032795,-1302.6,0.00024818,2]
[390122129,1759971032804,-602.43,0.00024904,2]
[390122130,1759971032814,-1000.0,0.00024935,2]
[390122131,1759971032823,-300.0,0.00024955,2]
[390122132,1759971032833,-299.18522577,0.00025035,2]
[390122133,1759971032842,-448.77783868,0.00025035,2]
[390122134,1759971032851,-299.18522579,0.00025035,2]
[390122135,1759971032861,-349.04943009,0.00025158,2]
[390122136,1759971032870,-327.0,0.00025226,7]
[390122137,1759971032880,-1155.324,0.00025393,10]
[390122138,1759971032890,-600.0,0.00025479,2]
[390122139,1759971032899,-398.91363439,0.00025486,3]
[390122140,1759971032908,-386.0,0.00025507,7]
[390122141,1759971032918,-6030.18507969,0.00025529,2]
[390122142,1759971032932,-529.28140338,0.00025529,2]
[390122143,1759971033011,-4621.81564408,0.00025529,2]
[390122144,1759971033021,-327.0,0.00025626,7]
[390122145,1759971033031,-386.0,0.00025663,2]
[390122146,1759971033040,-386.0,0.0002567,7]
[390122147,1759971033050,-448.0,0.00025709,2]
[390122148,1759971033060,-448.0,0.00025739,2]
[390122149,1759971033070,-151.9513638,0.00025764,2]
[390122150,1759971033080,-231.28369723,0.00025764,2]
[390122151,1759971033090,-601.3376128,0.00025764,2]
[390122152,1759971033100,-7965.41053268,0.00025764,2]
[390122153,1759971033109,-339.48163206,0.00025764,2]
[390122154,1759971033119,-1000.0,0.00025764,2]
[390122155,1759971033129,-1000.0,0.00025764,2]
[390122156,1759971033139,-578.20924308,0.00025764,2]
[390122157,1759971033148,-1000.0,0.00025764,2]
[390122158,1759971033158,-1000.0,0.00025764,2]
[390122159,1759971033172,-1000.0,0.00025764,2]
[390122160,1759971033182,-1000.0,0.00025764,2]
[390122161,1759971033192,-297.71832794,0.00025764,2]
[390122162,1759971033201,-363.54968989,0.00025764,2]
[390122163,1759971033211,-500.0,0.00025764,2]
[390122164,1759971033221,-500.0,0.00025764,2]
[390122165,1759971033231,-322.6107,0.00025764,2]
[390122166,1759971033241,-8260.13072239,0.00025819,2]
[390122167,1759971033251,-8316.76141276,0.00025874,2]
[390122168,1759971033316,-248.99414635,0.00025874,2]
[390122169,1759971033327,-670.16254177,0.00025929,2]
[390122170,1759971033339,-7717.2003063,0.00025929,2]
[390122171,1759971033349,-345.09,0.00025985,2]
[390122172,1759971033358,-1000.0,0.00026026,2]
[390122173,1759971033368,-2339.0,0.00026027,7]
[390122174,1759971033378,-600.0,0.00026027,2]
[390122175,1759971033388,-152.0,0.00026102,3]
[390122176,1759971033397,-386.0,0.00026117,2]
[390122177,1759971033407,-498.64204299,0.00026142,4]
[390122178,1759971033416,-1000.0,0.00026169,2]
[390122179,1759971033425,-1469.18510194,0.00026299,2]
[390122180,1759971033435,-1425.0,0.00026321,2]
[390122181,1759971033444,-474.14,0.00026384,2]
[390122182,1759971033454,-1615.3,0.00026384,2]
[390122183,1759971033463,-474.14,0.00026384,2]
[390122184,1759971033473,-473.3,0.00026384,2]
[390122185,1759971033483,-386.0,0.00026396,2]
[390122186,1759971033493,-676.88611,0.00026411,2]
[390122187,1759971033502,-548.50624729,0.00026469,5]
[390122188,1759971033512,-1180.31,0.0002648,2]
[390122189,1759971033521,-952.76859151,0.00026492,2]
[390122190,1759971037658,-294.75802627,0.00026492,2]
[390122388,1759971040021,-13013.51551475,0.00026492,2]
[390122390,1759971040031,-676.88611,0.00026493,2]
[390122392,1759971040041,-1000.0,0.00026521,2]
[390122394,1759971040052,-378.26746023,0.00026579,2]
[390122396,1759971040061,-192.51,0.00026582,2]
[390122398,1759971040071,-192.51,0.00026582,2]
[390122401,1759971040081,-12904.84,0.00026591,2]
[390122403,1759971040091,-9999.99,0.00026591,2]
[390122405,1759971040101,-150.99,0.00026591,2]